[Event "Championnat du monde jeunes U10"]
[Date "2024.11.26"]
[White "Guirado Lara, Pablo"]
[Black "Tenuun, Tseesuren"]
[WhiteElo "1832"]
[BlackElo "1702"]
[Round "11.32"]
[Result "0-1"]
[TimeControl "5400+30"]

1. e4 {[%clk 1:30:59]} 1... e5 {[%clk 1:30:29]} 2. Nf3 {[%clk 1:31:25]} 2... Nc6
{[%clk 1:30:49]} 3. Bc4 {[%clk 1:31:50]} 3... Nf6 {[%clk 1:31:13]} 4. d3 {[%clk
1:32:14]} 4... Be7 {[%clk 1:30:44]} 5. Bb3 {[%clk 1:32:36]} 5... d6 {[%clk
1:31:02]} 6. c3 {[%clk 1:33:00]} 6... O-O {[%clk 1:31:00]} 7. Nbd2 {[%clk
1:33:25]} 7... Na5 {[%clk 1:31:10]} 8. Bc2 {[%clk 1:33:41]} 8... c5 {[%clk
1:31:33]} 9. Nf1 {[%clk 1:33:35]} 9... Nc6 {[%clk 1:31:23]} 10. Ng3 {[%clk
1:33:24]} 10... Re8 {[%clk 1:31:45]} 11. O-O {[%clk 1:33:41]} 11... b5 {[%clk
1:31:43]} 12. Bd2 {[%clk 1:28:09]} 12... a5 {[%clk 1:31:26]} 13. a3 {[%clk
1:23:35]} 13... Bf8 {[%clk 1:31:05]} 14. h3 {[%clk 1:19:05]} 14... h6 {[%clk
1:29:44]} 15. Nh2 {[%clk 1:18:19]} 15... d5 {[%clk 1:29:18]} 16. Qe2 {[%clk
1:13:57]} 16... g6 {[%clk 1:27:28]} 17. Rad1 {[%clk 1:09:00]} 17... Bb7 {[%clk
1:24:46]} 18. Qf3 {[%clk 0:59:47]} 18... Bg7 {[%clk 1:16:08]} 19. Be3 {[%clk
0:44:55]} 19... d4 {[%clk 1:15:56]} 20. Bc1 {[%clk 0:43:57]} 20... dxc3 {[%clk
1:12:21]} 21. bxc3 {[%clk 0:44:16]} 21... b4 {[%clk 1:12:39]} 22. Bb2 {[%clk
0:39:33]} 22... bxc3 {[%clk 1:12:33]} 23. Bxc3 {[%clk 0:39:30]} 23... Nd4 {[%clk
1:12:31]} 24. Bxd4 {[%clk 0:39:51]} 24... cxd4 {[%clk 1:12:33]} 25. Rb1 {[%clk
0:33:16]} 25... Bc6 {[%clk 1:11:44]} 26. a4 {[%clk 0:28:13]} 26... Qd6 {[%clk
1:10:18]} 27. Rfc1 {[%clk 0:25:12]} 27... Rab8 {[%clk 1:10:14]} 28. Bb3 {[%clk
0:13:47]} 28... Rb4 {[%clk 1:10:11]} 29. Qd1 {[%clk 0:12:18]} 29... Reb8 {[%clk
1:07:09]} 30. Qc2 {[%clk 0:09:03]} 30... R8b6 {[%clk 1:04:56]} 31. Qa2 {[%clk
0:06:36]} 31... Qd7 {[%clk 1:04:35]} 32. Nf3 {[%clk 0:03:20]} 32... Ne8 {[%clk
1:04:26]} 33. Bc4 {[%clk 0:01:46]} 33... Nd6 {[%clk 1:02:38]} 34. Rxb4 {[%clk
0:01:21]} 34... Rxb4 {[%clk 1:02:59]} 35. Nd2 {[%clk 0:01:02]} 35... Bxa4 {[%clk
1:00:52]} 36. Rb1 {[%clk 0:00:46]} 36... Rxb1+ 37. Qxb1 {[%clk 0:01:15]} 37...
Bb5 {[%clk 0:55:22]} 38. Bd5 {[%clk 0:00:40]} 38... Qc7 {[%clk 0:55:12]} 39. Ne2
{[%clk 0:00:45]} 39... a4 {[%clk 0:55:11]} 40. Nc1 {[%clk 0:00:32]} 40... Qc3
{[%clk 0:55:14]} 41. Nc4 {[%clk 0:00:37]} 41... Bxc4 {[%clk 0:54:53]} 42. dxc4
{[%clk 0:00:51]} 42... Nxc4 {[%clk 0:55:08]} 43. Ne2 {[%clk 0:01:01]} 43... Qb2
{[%clk 0:55:02]} 44. Qd3 {[%clk 0:00:46]} 44... Nd2 {[%clk 0:53:57]} 45. Ng3
{[%clk 0:00:39]} 45... Qb1+ {[%clk 0:47:39]} 46. Qxb1 {[%clk 0:01:06]} 46...
Nxb1 {[%clk 0:47:56]} 47. Kf1 {[%clk 0:01:25]} 47... a3 {[%clk 0:48:05]} 48. Ne2
{[%clk 0:01:04]} 48... d3 {[%clk 0:48:13]} 49. Nc1 {[%clk 0:01:24]} 49... d2
{[%clk 0:48:36]} 0-1

[Variant "Standard"]
[Site "Europe Echecs"]

[Event "Championnat du monde jeunes U10"]
[Date "2024.11.26"]
[White "Yevsieiev, Yaroslav"]
[Black "Buklaho, Ignacy"]
[WhiteElo "1706"]
[BlackElo "1822"]
[Round "11.33"]
[Result "1-0"]
[TimeControl "5400+30"]

1. e4 {[%clk 1:30:58]} 1... c5 {[%clk 1:30:56]} 2. Nf3 {[%clk 1:31:24]} 2... e6
{[%clk 1:31:22]} 3. c3 {[%clk 1:31:48]} 3... d5 {[%clk 1:31:39]} 4. exd5 {[%clk
1:32:13]} 4... Qxd5 {[%clk 1:32:03]} 5. d4 {[%clk 1:32:39]} 5... Nf6 {[%clk
1:32:13]} 6. Bb5+ {[%clk 1:32:44]} 6... Bd7 {[%clk 1:29:32]} 7. Bxd7+ {[%clk
1:32:54]} 7... Nbxd7 {[%clk 1:29:18]} 8. O-O {[%clk 1:33:13]} 8... Be7 {[%clk
1:28:45]} 9. Be3 {[%clk 1:32:52]} 9... O-O {[%clk 1:28:34]} 10. Qe2 {[%clk
1:31:30]} 10... cxd4 {[%clk 1:27:59]} 11. cxd4 {[%clk 1:31:52]} 11... Nb6 {[%clk
1:27:02]} 12. Nc3 {[%clk 1:32:16]} 12... Qc4 {[%clk 1:26:21]} 13. Qd2 {[%clk
1:32:40]} 13... Bb4 {[%clk 1:24:20]} 14. Rac1 {[%clk 1:32:10]} 14... Rac8 {[%clk
1:15:09]} 15. a3 {[%clk 1:32:10]} 15... Bxc3 {[%clk 1:13:55]} 16. Rxc3 {[%clk
1:32:11]} 16... Qd5 {[%clk 1:14:14]} 17. Qd3 {[%clk 1:32:19]} 17... Ne4 {[%clk
1:12:12]} 18. Rb3 {[%clk 1:30:18]} 18... Nc4 {[%clk 1:04:12]} 19. Ne5 {[%clk
1:18:13]} 19... Ned6 {[%clk 0:54:33]} 20. Nxc4 {[%clk 1:16:25]} 20... Nxc4
{[%clk 0:54:55]} 21. h3 {[%clk 1:16:44]} 21... Rfd8 {[%clk 0:54:31]} 22. Rd1
{[%clk 1:13:54]} 22... a6 {[%clk 0:54:33]} 23. f3 {[%clk 1:13:01]} 23... h6
{[%clk 0:53:16]} 24. Bf2 {[%clk 1:12:04]} 24... b5 {[%clk 0:53:24]} 25. Qe2
{[%clk 1:11:11]} 25... Nd6 {[%clk 0:52:24]} 26. Rbd3 {[%clk 1:10:29]} 26... Nf5
{[%clk 0:49:50]} 27. Qe4 {[%clk 1:10:15]} 27... Rc4 {[%clk 0:37:58]} 28. g4
{[%clk 1:01:10]} 28... Ne7 {[%clk 0:35:50]} 29. Bh4 {[%clk 1:01:03]} 29... Rd7
{[%clk 0:30:57]} 30. Bxe7 {[%clk 0:49:14]} 30... Rxe7 {[%clk 0:31:20]} 31. Rc3
{[%clk 0:49:15]} 31... Rxc3 {[%clk 0:29:34]} 32. bxc3 {[%clk 0:49:25]} 32... Rc7
{[%clk 0:28:38]} 33. Qxd5 {[%clk 0:48:41]} 33... exd5 {[%clk 0:29:01]} 34. Rc1
{[%clk 0:49:09]} 34... Kf8 {[%clk 0:21:05]} 35. Kf2 {[%clk 0:49:23]} 35... Ke7
{[%clk 0:21:07]} 36. Ke3 {[%clk 0:49:44]} 36... Kd6 {[%clk 0:21:09]} 37. Kd3
{[%clk 0:50:04]} 37... Re7 {[%clk 0:21:10]} 38. a4 {[%clk 0:50:16]} 38... Ra7
{[%clk 0:17:08]} 39. Re1 {[%clk 0:49:39]} 39... Kc6 {[%clk 0:13:57]} 40. a5
{[%clk 0:49:46]} 40... Kd7 {[%clk 0:07:12]} 41. Re5 {[%clk 0:48:20]} 41... Kd6
{[%clk 0:06:05]} 42. Re8 {[%clk 0:48:13]} 42... f6 {[%clk 0:05:31]} 43. Kc2
{[%clk 0:46:35]} 43... Kc6 {[%clk 0:01:46]} 44. Kb3 {[%clk 0:46:53]} 44... Kd6
{[%clk 0:01:20]} 45. f4 {[%clk 0:46:47]} 45... Kd7 {[%clk 0:01:12]} 46. Rg8
{[%clk 0:46:01]} 46... Kc6 {[%clk 0:01:19]} 47. Rb8 {[%clk 0:45:28]} 47... Kd7
48. f5 {[%clk 0:45:29]} 48... Ke7 {[%clk 0:00:38]} 49. Rb6 {[%clk 0:45:38]}
49... Kd7 {[%clk 0:00:35]} 50. Kb4 {[%clk 0:45:46]} 50... Rc7 {[%clk 0:00:35]}
51. Rxa6 {[%clk 0:46:06]} 51... Rc4+ {[%clk 0:00:56]} 52. Kb3 {[%clk 0:46:27]}
52... Ra4 {[%clk 0:00:55]} 53. Ra7+ {[%clk 0:46:45]} 53... Kd8 {[%clk 0:00:51]}
54. Rxg7 {[%clk 0:47:02]} 54... Rxa5 {[%clk 0:01:07]} 55. Rh7 {[%clk 0:47:12]}
55... Ra1 {[%clk 0:01:08]} 56. Rxh6 {[%clk 0:47:35]} 56... Ke7 {[%clk 0:01:34]}
57. Rh7+ {[%clk 0:47:57]} 57... Kf8 {[%clk 0:01:54]} 58. Rd7 {[%clk 0:48:18]}
58... Rb1+ {[%clk 0:01:57]} 59. Kc2 {[%clk 0:48:44]} 59... Rh1 {[%clk 0:02:14]}
60. Rxd5 {[%clk 0:49:05]} 60... Rh2+ {[%clk 0:02:36]} 61. Kb3 {[%clk 0:49:30]}
61... Rxh3 {[%clk 0:02:58]} 62. Rxb5 {[%clk 0:49:56]} 62... Rg3 {[%clk 0:03:18]}
63. d5 {[%clk 0:50:04]} 63... Rxg4 {[%clk 0:03:17]} 64. c4 {[%clk 0:50:23]}
64... Ke7 {[%clk 0:03:06]} 65. Kb4 {[%clk 0:50:20]} 65... Rf4 {[%clk 0:03:27]}
66. Kc5 {[%clk 0:50:46]} 66... Kd7 {[%clk 0:03:08]} 67. Rb7+ {[%clk 0:51:04]}
67... Kc8 {[%clk 0:03:26]} 68. Rf7 {[%clk 0:51:28]} 68... Rxf5 {[%clk 0:03:50]}
69. Kd6 {[%clk 0:51:55]} 69... Rf1 {[%clk 0:04:06]} 70. c5 {[%clk 0:52:21]}
70... Rc1 {[%clk 0:04:07]} 71. c6 {[%clk 0:52:47]} 71... Kb8 {[%clk 0:04:27]}
72. Rxf6 {[%clk 0:53:10]} 72... Rc2 {[%clk 0:04:38]} 73. Kd7 {[%clk 0:53:29]}
73... Rc5 {[%clk 0:04:54]} 74. d6 {[%clk 0:53:48]} 74... Rc1 {[%clk 0:05:15]}
75. c7+ {[%clk 0:54:14]} 75... Kb7 {[%clk 0:05:35]} 76. Rf8 {[%clk 0:54:39]}
76... Rc2 {[%clk 0:05:42]} 77. Rb8+ {[%clk 0:54:54]} 77... Ka7 {[%clk 0:06:06]}
78. c8=Q {[%clk 0:55:14]} 78... Rxc8 {[%clk 0:06:11]} 79. Kxc8 {[%clk 0:55:40]}
79... Ka6 {[%clk 0:06:35]} 80. d7 {[%clk 0:56:06]} 80... Ka7 {[%clk 0:06:59]}
81. d8=Q {[%clk 0:56:30]} 81... Ka6 {[%clk 0:07:25]} 82. Qb6# {[%clk 0:56:55]}
1-0

[Variant "Standard"]
[Site "Europe Echecs"]

[Event "Championnat du monde jeunes U10"]
[Date "2024.11.26"]
[White "DAmato, Raffaele"]
[Black "Zhang, Oscar Y"]
[WhiteElo "1695"]
[BlackElo "1817"]
[Round "11.34"]
[Result "0-1"]
[TimeControl "5400+30"]

1. d4 {[%clk 1:30:59]} 1... Nf6 {[%clk 1:30:54]} 2. Nf3 {[%clk 1:31:28]} 2... d5
{[%clk 1:31:03]} 3. e3 {[%clk 1:31:52]} 3... c5 {[%clk 1:31:20]} 4. b3 {[%clk
1:32:15]} 4... Nc6 {[%clk 1:31:23]} 5. Bd3 {[%clk 1:32:30]} 5... e6 {[%clk
1:31:41]} 6. Bb2 {[%clk 1:32:45]} 6... Bd6 {[%clk 1:29:53]} 7. O-O {[%clk
1:33:03]} 7... O-O {[%clk 1:30:00]} 8. a3 {[%clk 1:33:25]} 8... b6 {[%clk
1:28:59]} 9. Nbd2 {[%clk 1:33:39]} 9... Bb7 {[%clk 1:28:21]} 10. Ne5 {[%clk
1:33:41]} 10... Re8 {[%clk 1:13:14]} 11. f4 {[%clk 1:33:20]} 11... Qc7 {[%clk
1:08:03]} 12. Nxc6 {[%clk 1:33:24]} 12... Qxc6 {[%clk 1:07:08]} 13. dxc5 {[%clk
1:33:44]} 13... Bxc5 {[%clk 1:07:13]} 14. Rf3 {[%clk 1:33:33]} 14... Ng4 {[%clk
0:52:49]} 15. Nf1 {[%clk 1:30:07]} 15... g6 {[%clk 0:44:36]} 16. Rg3 {[%clk
1:28:22]} 16... f5 {[%clk 0:35:09]} 17. h3 {[%clk 1:28:14]} 17... e5 {[%clk
0:32:05]} 18. fxe5 {[%clk 1:26:54]} 18... Nxe3 {[%clk 0:31:51]} 19. Nxe3 {[%clk
1:26:19]} 19... f4 {[%clk 0:32:11]} 20. Rf3 {[%clk 1:24:16]} 20... Bxe3+ {[%clk
0:32:15]} 21. Kh1 {[%clk 1:24:31]} 21... Qd7 {[%clk 0:31:42]} 22. a4 {[%clk
1:23:36]} 22... a6 {[%clk 0:28:30]} 23. Qe1 {[%clk 1:21:17]} 23... d4 {[%clk
0:24:26]} 24. Bc4+ {[%clk 1:21:17]} 24... Bd5 {[%clk 0:24:50]} 25. Bxd5+ {[%clk
1:21:33]} 25... Qxd5 {[%clk 0:25:14]} 26. Bc1 {[%clk 1:19:45]} 26... Rxe5 {[%clk
0:23:21]} 27. Bxe3 {[%clk 1:19:46]} 27... Rxe3 {[%clk 0:22:42]} 28. Qf2 {[%clk
1:18:50]} 28... Rxf3 {[%clk 0:21:50]} 29. gxf3 {[%clk 1:18:32]} 29... Re8 {[%clk
0:21:51]} 30. Rd1 {[%clk 1:18:35]} 30... Re3 {[%clk 0:21:34]} 31. Kg2 {[%clk
1:17:58]} 31... Qg5+ {[%clk 0:20:38]} 32. Kh2 {[%clk 1:18:11]} 32... Qe5 {[%clk
0:20:25]} 33. Rd2 {[%clk 1:18:00]} 33... Kg7 {[%clk 0:18:13]} 34. Kg2 {[%clk
1:16:51]} 34... g5 {[%clk 0:17:26]} 35. Kf1 {[%clk 1:16:48]} 35... Qd5 {[%clk
0:17:24]} 36. Kg2 {[%clk 1:16:46]} 36... h5 {[%clk 0:17:31]} 37. Re2 {[%clk
1:16:27]} 37... g4 {[%clk 0:17:34]} 38. hxg4 {[%clk 1:16:36]} 38... hxg4 {[%clk
0:17:59]} 39. Rxe3 {[%clk 1:17:00]} 39... dxe3 {[%clk 0:18:17]} 40. Qh4 {[%clk
1:14:55]} 40... Qxf3+ {[%clk 0:18:28]} 41. Kh2 {[%clk 1:14:13]} 41... g3+ {[%clk
0:18:47]} 42. Kh3 {[%clk 1:14:34]} 42... Qh1+ {[%clk 0:18:51]} 43. Kg4 {[%clk
1:14:50]} 43... Qxh4+ {[%clk 0:19:14]} 44. Kxh4 {[%clk 1:15:19]} 44... g2 {[%clk
0:19:22]} 45. Kg4 {[%clk 1:15:40]} 45... g1=Q+ {[%clk 0:19:36]} 0-1

[Variant "Standard"]
[Site "Europe Echecs"]

[Event "Championnat du monde jeunes U10"]
[Date "2024.11.26"]
[White "Kazimzade, Mahammad"]
[Black "Jani, Aakash"]
[WhiteElo "1687"]
[BlackElo "1810"]
[Round "11.35"]
[Result "1-0"]
[TimeControl "5400+30"]

1. d4 {[%clk 1:30:57]} 1... Nf6 {[%clk 1:30:43]} 2. c4 {[%clk 1:31:13]} 2... g6
{[%clk 1:30:33]} 3. Nc3 {[%clk 1:31:32]} 3... Bg7 {[%clk 1:29:54]} 4. g3 {[%clk
1:31:04]} 4... O-O {[%clk 1:28:18]} 5. Bg2 {[%clk 1:31:25]} 5... d6 {[%clk
1:27:47]} 6. Nf3 {[%clk 1:31:09]} 6... Nbd7 {[%clk 1:24:29]} 7. O-O {[%clk
1:31:10]} 7... e5 {[%clk 1:23:39]} 8. Qc2 {[%clk 1:31:26]} 8... exd4 {[%clk
1:22:45]} 9. Nxd4 {[%clk 1:31:49]} 9... Nb6 {[%clk 1:21:08]} 10. Rd1 {[%clk
1:32:09]} 10... Nxc4 {[%clk 1:20:01]} 11. Ncb5 {[%clk 1:32:21]} 11... a6 {[%clk
1:06:16]} 12. Qxc4 {[%clk 1:32:19]} 12... axb5 {[%clk 1:06:42]} 13. Nxb5 {[%clk
1:32:09]} 13... Ne8 {[%clk 1:05:48]} 14. Qb4 {[%clk 1:25:26]} 14... Bd7 {[%clk
0:56:43]} 15. Be3 {[%clk 1:22:31]} 15... Qe7 {[%clk 0:49:37]} 16. a3 {[%clk
1:18:58]} 16... Bc6 {[%clk 0:37:20]} 17. Rac1 {[%clk 1:14:48]} 17... Bxg2 {[%clk
0:37:18]} 18. Kxg2 {[%clk 1:15:14]} 18... c6 {[%clk 0:36:36]} 19. Nxd6 {[%clk
1:15:01]} 19... Nxd6 {[%clk 0:36:56]} 20. Rxd6 {[%clk 1:14:44]} 20... Bxb2
{[%clk 0:36:50]} 21. Rxg6+ {[%clk 1:14:15]} 21... hxg6 {[%clk 0:36:46]} 22. Qxe7
{[%clk 1:14:37]} 22... Bxa3 {[%clk 0:31:33]} 23. Qf6 {[%clk 1:14:39]} 23... Rfd8
{[%clk 0:27:55]} 24. Bh6 {[%clk 1:14:38]} 24... Bf8 {[%clk 0:28:18]} 25. Bxf8
{[%clk 1:15:04]} 25... Kxf8 {[%clk 0:26:03]} 26. Rc4 {[%clk 1:15:29]} 26... Ke8
{[%clk 0:22:01]} 27. Re4+ {[%clk 1:15:51]} 27... Kd7 {[%clk 0:22:25]} 28. Re7+
{[%clk 1:15:56]} 28... Kc8 {[%clk 0:22:34]} 29. Qf4 {[%clk 1:16:16]} 29... Rd7
{[%clk 0:22:53]} 30. Re8+ {[%clk 1:15:56]} 30... Rd8 {[%clk 0:23:16]} 31. Qxf7
{[%clk 1:16:23]} 31... Rb8 {[%clk 0:22:59]} 32. Qe6+ {[%clk 1:16:34]} 32... Kc7
{[%clk 0:23:24]} 33. Re7+ {[%clk 1:16:53]} 33... Kb6 {[%clk 0:23:43]} 34. Qb3+
{[%clk 1:17:15]} 34... Kc5 {[%clk 0:23:04]} 35. Re5+ {[%clk 1:17:38]} 35... Kd6
{[%clk 0:23:19]} 36. Re6+ {[%clk 1:17:45]} 36... Kd7 {[%clk 0:21:38]} 37. Rxg6
{[%clk 1:18:02]} 37... Kc8 {[%clk 0:20:55]} 38. Qf7 {[%clk 1:18:21]} 38... Rd7
{[%clk 0:21:06]} 39. Rg8+ {[%clk 1:18:47]} 39... Kc7 {[%clk 0:21:28]} 40. Qf4+
{[%clk 1:19:11]} 40... Rd6 {[%clk 0:21:49]} 41. Rg7+ {[%clk 1:19:35]} 41... Kc8
{[%clk 0:21:55]} 42. Qxd6 {[%clk 1:19:52]} 42... Ra8 {[%clk 0:21:53]} 43. Rg8#
1-0

[Variant "Standard"]
[Site "Europe Echecs"]

[Event "Championnat du monde jeunes U10"]
[Date "2024.11.26"]
[White "Ismailov, Omarbek"]
[Black "Zhou, Guoyu"]
[WhiteElo "1625"]
[BlackElo "1809"]
[Round "11.36"]
[Result "1-0"]
[TimeControl "5400+30"]

1. d4 {[%clk 1:30:56]} 1... d5 {[%clk 1:30:57]} 2. Bf4 {[%clk 1:31:19]} 2... Nf6
{[%clk 1:31:17]} 3. e3 {[%clk 1:31:41]} 3... c5 {[%clk 1:31:35]} 4. c3 {[%clk
1:32:04]} 4... Nc6 {[%clk 1:31:53]} 5. Nd2 {[%clk 1:31:43]} 5... Bf5 {[%clk
1:32:05]} 6. Ngf3 {[%clk 1:31:56]} 6... e6 {[%clk 1:32:11]} 7. Nh4 {[%clk
1:31:44]} 7... Bg6 {[%clk 1:28:23]} 8. Nxg6 {[%clk 1:31:13]} 8... hxg6 {[%clk
1:28:51]} 9. Qb3 {[%clk 1:30:42]} 9... Qd7 {[%clk 1:28:22]} 10. Nf3 {[%clk
1:30:42]} 10... c4 {[%clk 1:27:29]} 11. Qc2 {[%clk 1:31:01]} 11... Bd6 {[%clk
1:27:11]} 12. Bxd6 {[%clk 1:30:49]} 12... Qxd6 {[%clk 1:27:31]} 13. b3 {[%clk
1:31:01]} 13... cxb3 {[%clk 1:23:51]} 14. axb3 {[%clk 1:31:04]} 14... O-O {[%clk
1:24:04]} 15. Be2 {[%clk 1:31:04]} 15... e5 {[%clk 1:21:39]} 16. dxe5 {[%clk
1:30:12]} 16... Nxe5 {[%clk 1:21:55]} 17. Nd4 {[%clk 1:30:34]} 17... a6 {[%clk
1:21:44]} 18. h3 {[%clk 1:29:30]} 18... Rac8 {[%clk 1:20:51]} 19. O-O {[%clk
1:26:44]} 19... Rc7 {[%clk 1:20:36]} 20. f4 {[%clk 1:25:50]} 20... Ned7 {[%clk
1:19:09]} 21. c4 {[%clk 1:24:45]} 21... dxc4 {[%clk 1:18:58]} 22. bxc4 {[%clk
1:25:06]} 22... Re8 {[%clk 1:18:24]} 23. Rf3 {[%clk 1:23:53]} 23... Nb6 {[%clk
1:17:35]} 24. Qb3 {[%clk 1:23:34]} 24... Ne4 {[%clk 1:17:08]} 25. Qc2 {[%clk
1:15:14]} 25... Nd7 {[%clk 1:06:38]} 26. Rd1 {[%clk 1:14:16]} 26... Qf6 {[%clk
1:05:47]} 27. Bd3 {[%clk 1:09:02]} 27... Ndc5 {[%clk 1:05:47]} 28. Bxe4 {[%clk
1:09:05]} 28... Rxe4 {[%clk 1:04:54]} 29. Nb3 {[%clk 1:08:18]} 29... Qe7 {[%clk
1:03:51]} 30. Nxc5 {[%clk 1:04:52]} 30... Rxc5 {[%clk 1:04:06]} 31. Rd8+ {[%clk
1:04:59]} 31... Qxd8 {[%clk 1:01:32]} 32. Qxe4 {[%clk 1:04:09]} 32... Qc8 {[%clk
1:01:21]} 33. Rg3 {[%clk 1:03:38]} 33... Rxc4 {[%clk 1:01:36]} 34. Qd5 {[%clk
1:03:55]} 34... Rc5 {[%clk 1:01:45]} 35. Qa2 {[%clk 1:03:46]} 35... Qc6 {[%clk
0:59:13]} 36. Qd2 {[%clk 1:02:54]} 36... Rd5 {[%clk 0:59:23]} 37. Qe2 {[%clk
1:02:47]} 37... Qc1+ {[%clk 0:59:37]} 38. Kh2 {[%clk 1:02:50]} 38... Rd1 {[%clk
0:58:38]} 39. Rg5 {[%clk 1:02:53]} 39... Re1 {[%clk 0:58:13]} 40. Qd3 {[%clk
1:01:28]} 40... Qxe3 {[%clk 0:57:44]} 41. Qd8+ {[%clk 0:59:08]} 41... Qe8 {[%clk
0:57:08]} 42. Qd5 {[%clk 0:59:00]} 42... Qe4 {[%clk 0:52:29]} 43. Qd8+ {[%clk
0:59:10]} 43... Kh7 {[%clk 0:52:40]} 44. Rg4 {[%clk 0:59:16]} 44... g5 {[%clk
0:52:01]} 45. Qxg5 {[%clk 0:58:45]} 45... Qd4 {[%clk 0:16:41]} 46. Qh4+ {[%clk
0:59:04]} 46... Kg8 {[%clk 0:13:19]} 47. Qxe1 {[%clk 0:59:23]} 47... Kf8 {[%clk
0:10:44]} 48. Qe5 {[%clk 0:59:25]} 48... Qxe5 {[%clk 0:09:12]} 49. fxe5 {[%clk
0:58:45]} 49... Ke7 {[%clk 0:09:17]} 50. Rxg7 {[%clk 0:58:45]} 50... Ke6 {[%clk
0:05:10]} 51. Rh7 {[%clk 0:58:45]} 51... Kxe5 {[%clk 0:04:53]} 52. Rxf7 {[%clk
0:59:08]} 52... b5 {[%clk 0:04:38]} 53. Ra7 {[%clk 0:59:30]} 1-0

[Variant "Standard"]
[Site "Europe Echecs"]

[Event "Championnat du monde jeunes U10"]
[Date "2024.11.26"]
[White "Lee, Yugeon"]
[Black "Ivanovic, Leonid"]
[WhiteElo "1690"]
[BlackElo "1990"]
[Round "11.37"]
[Result "0-1"]
[TimeControl "5400+30"]

1. d4 {[%clk 1:30:57]} 1... Nf6 {[%clk 1:30:43]} 2. c4 {[%clk 1:31:22]} 2... e6
{[%clk 1:30:54]} 3. Nc3 {[%clk 1:31:34]} 3... Bb4 {[%clk 1:31:07]} 4. Qc2 {[%clk
1:31:51]} 4... O-O {[%clk 1:30:55]} 5. a3 {[%clk 1:32:14]} 5... Bxc3+ {[%clk
1:31:13]} 6. Qxc3 {[%clk 1:32:40]} 6... b6 {[%clk 1:31:21]} 7. Nf3 {[%clk
1:30:22]} 7... Bb7 {[%clk 1:30:18]} 8. e3 {[%clk 1:29:15]} 8... d6 {[%clk
1:25:21]} 9. Be2 {[%clk 1:27:39]} 9... Ne4 {[%clk 1:19:25]} 10. Qc2 {[%clk
1:26:05]} 10... f5 {[%clk 1:19:11]} 11. O-O {[%clk 1:26:08]} 11... Rf6 {[%clk
1:18:19]} 12. Rd1 {[%clk 1:10:09]} 12... Rg6 {[%clk 1:14:16]} 13. d5 {[%clk
1:07:02]} 13... e5 {[%clk 0:55:12]} 14. Bd3 {[%clk 1:01:54]} 14... Bc8 {[%clk
0:47:56]} 15. Bxe4 {[%clk 0:41:58]} 15... fxe4 {[%clk 0:48:17]} 16. Qxe4 {[%clk
0:41:37]} 16... Qf6 {[%clk 0:45:03]} 17. Kh1 {[%clk 0:28:42]} 17... a5 {[%clk
0:28:17]} 18. Qd3 {[%clk 0:22:37]} 18... Bh3 {[%clk 0:24:08]} 19. Rg1 {[%clk
0:18:43]} 19... Bxg2+ {[%clk 0:22:56]} 20. Rxg2 {[%clk 0:19:08]} 20... Qxf3
{[%clk 0:22:53]} 21. Qf1 {[%clk 0:19:17]} 21... Nd7 {[%clk 0:22:45]} 22. Kg1
{[%clk 0:16:34]} 22... Rxg2+ {[%clk 0:22:32]} 23. Qxg2 {[%clk 0:16:59]} 23...
Qd1+ {[%clk 0:22:08]} 24. Qf1 {[%clk 0:17:25]} 24... Qg4+ {[%clk 0:22:19]} 25.
Kh1 {[%clk 0:17:17]} 25... Rf8 {[%clk 0:22:24]} 26. f4 {[%clk 0:15:12]} 26...
Nc5 {[%clk 0:17:24]} 27. Qg2 {[%clk 0:11:09]} 27... Qd1+ {[%clk 0:14:59]} 28.
Qg1 {[%clk 0:11:34]} 28... Qc2 {[%clk 0:14:00]} 29. b4 {[%clk 0:08:45]} 29...
Nb3 {[%clk 0:13:58]} 30. Bb2 {[%clk 0:08:59]} 30... Nxa1 {[%clk 0:13:55]} 31.
Bxa1 {[%clk 0:09:21]} 31... Qe4+ {[%clk 0:14:19]} 32. Qg2 {[%clk 0:09:45]} 32...
Qxg2+ {[%clk 0:14:29]} 33. Kxg2 {[%clk 0:10:10]} 33... exf4 {[%clk 0:14:51]} 34.
exf4 {[%clk 0:10:34]} 34... Rxf4 {[%clk 0:15:13]} 35. bxa5 {[%clk 0:10:55]}
35... bxa5 {[%clk 0:15:30]} 36. c5 {[%clk 0:11:18]} 36... dxc5 {[%clk 0:15:52]}
37. Be5 {[%clk 0:11:44]} 37... Rf5 {[%clk 0:16:11]} 38. Bxc7 {[%clk 0:12:10]}
38... Rxd5 {[%clk 0:16:35]} 39. Bxa5 {[%clk 0:12:36]} 39... c4 {[%clk 0:16:53]}
40. Kf2 {[%clk 0:13:02]} 40... Rxa5 {[%clk 0:17:16]} 41. Ke3 {[%clk 0:13:24]}
41... Rxa3+ {[%clk 0:17:39]} 42. Kd4 {[%clk 0:13:48]} 42... c3 {[%clk 0:18:02]}
43. Kc4 {[%clk 0:14:13]} 43... c2 {[%clk 0:18:27]} 44. Kb4 {[%clk 0:14:37]}
44... c1=Q {[%clk 0:18:49]} 45. Kb5 {[%clk 0:15:03]} 45... Rb3+ {[%clk 0:19:10]}
46. Ka4 {[%clk 0:15:28]} 46... Qa3# {[%clk 0:19:33]} 0-1

[Variant "Standard"]
[Site "Europe Echecs"]